fUSD/lending_fUSD_20240712
["ID","MTS","AMOUNT","RATE_DAILY","PERIOD"]
[331799134,1720765936770,-500.0,0.00014356,2]
[331799135,1720765936779,-500.0,0.00014356,2]
[331799136,1720765936789,-511.55,0.00014356,2]
[331799137,1720765936799,-682.84,0.00014356,2]
[331799138,1720765936809,-500.0,0.00014356,2]
[331799139,1720765936818,-913.11,0.00014356,2]
[331799140,1720765936828,-500.0,0.00014356,2]
[331799141,1720765936837,-557.92,0.00014356,2]
[331799142,1720765936847,-500.0,0.00014356,2]
[331799143,1720765936856,-665.1,0.00014356,2]
[331799144,1720765936866,-500.0,0.00014356,2]
[331799145,1720765936876,-647.57,0.00014356,2]
[331799146,1720765936886,-655.14,0.00014356,2]
[331799147,1720765936895,-1070.59,0.00014356,2]
[331799148,1720765936905,-500.0,0.00014356,2]
[331799149,1720765936914,-608.3,0.00014356,2]
[331799150,1720765936924,-549.77,0.00014356,2]
[331799151,1720765936934,-955.34,0.00014356,2]
[331799152,1720765936945,-500.0,0.00014356,2]
[331799153,1720765936956,-500.0,0.00014356,2]
[331799154,1720765936968,-572.55,0.00014356,2]
[331799155,1720765936978,-1087.88,0.00014356,2]
[331799156,1720765936988,-924.38,0.00014356,2]
[331799157,1720765936997,-895.76,0.00014356,2]
[331799158,1720765937007,-877.72,0.00014356,2]
[331799159,1720765937017,-811.35,0.00014356,2]
[331799160,1720765937027,-701.46,0.00014356,2]
[331799161,1720765937037,-943.64,0.00014356,2]
[331799162,1720765937046,-573.55885167,0.00014356,2]
[331799163,1720765937057,-535.3,0.00014356,2]
[331799164,1720765937068,-951.0,0.00014356,2]
[331799165,1720765937078,-533.99,0.00014356,2]
[331799166,1720765937088,-500.0,0.00014356,2]
[331799167,1720765937098,-691.79,0.00014356,2]
[331799168,1720765937107,-500.0,0.00014356,2]
[331799169,1720765937117,-749.0,0.00014356,2]
[331799170,1720765937127,-646.61,0.00014356,2]
[331799171,1720765937136,-1153.39,0.00014356,2]
[331799172,1720765937146,-828.98,0.00014356,2]
[331799173,1720765937156,-500.0,0.00014356,2]
[331799174,1720765937166,-797.92,0.00014356,2]
[331799175,1720765937176,-678.2,0.00014356,2]
[331799176,1720765937185,-434.85004173,0.00014356,2]
[331799177,1720765937195,-742.09,0.00014356,2]
[331799178,1720765937205,-925.55,0.00014356,2]
[331799179,1720765937215,-718.26,0.00014356,2]
[331799180,1720765937226,-660.22,0.00014356,2]
[331799181,1720765937236,-685.66,0.00014356,2]
[331799182,1720765937246,-616.92,0.00014356,2]
[331799183,1720765937255,-626.69,0.00014356,2]
[331799184,1720765937265,-578.66,0.00014356,2]
[331799185,1720765937276,-1182.27,0.00014356,2]
[331799186,1720765937285,-751.88,0.00014356,2]
[331799187,1720765937295,-788.87,0.00014356,2]
[331799188,1720765937305,-589.96,0.00014356,2]
[331799189,1720765937314,-500.0,0.00014356,2]
[331799190,1720765937324,-1518.85,0.00014356,2]
[331799191,1720765937333,-863.12,0.00014356,2]
[331799192,1720765937343,-500.0,0.00014356,2]
[331799193,1720765937352,-765.3,0.00014356,2]
[331799194,1720765937362,-1173.86,0.00014356,2]
[331799195,1720765937371,-500.0,0.00014356,2]
[331799196,1720765937381,-714.93,0.00014356,2]
[331799197,1720765937390,-500.0,0.00014356,2]
[331799198,1720765937400,-432.05532273,0.00014356,2]
[331799199,1720765937409,-889.91,0.00014356,2]
[331799200,1720765937419,-500.0,0.00014356,2]
[331799201,1720765937428,-797.27,0.00014356,2]
[331799202,1720765937438,-500.0,0.00014356,2]
[331799203,1720765937448,-508.63,0.00014356,2]
[331799204,1720765937458,-500.0,0.00014356,2]
[331799205,1720765937469,-1002.89,0.00014356,2]
[331799206,1720765937479,-512.8,0.00014356,2]
[331799207,1720765937489,-905.0,0.00014356,2]
[331799208,1720765937499,-500.0,0.00014356,2]
[331799209,1720765937512,-500.0,0.00014356,2]
[331799210,1720765937522,-500.0,0.00014356,2]
[331799211,1720765937532,-500.0,0.00014356,2]
[331799212,1720765937541,-504.61,0.00014356,2]
[331799213,1720765937551,-500.0,0.00014356,2]
[331799214,1720765937561,-998.09,0.00014356,2]
[331799215,1720765937573,-1181.8,0.00014356,2]
[331799216,1720765937582,-1692.88,0.00014356,2]
[331799217,1720765937593,-500.0,0.00014356,2]
[331799218,1720765937603,-500.0,0.00014356,2]
[331799219,1720765937613,-806.67,0.00014356,2]
[331799220,1720765937623,-1115.55,0.00014356,2]
[331799221,1720765937634,-1111.86,0.00014356,2]
[331799222,1720765937644,-500.0,0.00014356,2]
[331799223,1720765937654,-1152.37,0.00014356,2]
[331799224,1720765937665,-500.0,0.00014356,2]
[331799225,1720765937824,-564.23574363,0.00014356,2]
[331799226,1720765937839,-500.0,0.00014356,2]
[331799227,1720765937849,-1099.21,0.00014356,2]
[331799228,1720765937858,-500.0,0.00014356,2]
[331799229,1720765937868,-202.87,0.00014356,2]
[331799230,1720765937878,-500.0,0.00014356,2]
[331799231,1720765937887,-958.58,0.00014356,2]
[331799232,1720765937899,-1435.54,0.00014356,2]
[331799233,1720765937910,-500.0,0.00014356,2]
[331799234,1720765937919,-933.39,0.00014356,2]
[331799235,1720765937930,-500.0,0.00014356,2]
[331799236,1720765937939,-885.22,0.00014356,2]
[331799237,1720765937950,-525.55,0.00014356,2]
[331799238,1720765937960,-578.47,0.00014356,2]
[331799239,1720765937971,-585.1,0.00014356,2]
[331799240,1720765937981,-768.43,0.00014356,2]
[331799241,1720765937991,-500.0,0.00014356,2]
[331799242,1720765938000,-1131.03,0.00014356,2]
[331799243,1720765938010,-500.66,0.00014356,2]
[331799244,1720765938020,-1387.16,0.00014356,2]
[331799245,1720765938030,-769.71,0.00014356,2]
[331799246,1720765938040,-929.61,0.00014356,2]
[331799247,1720765938050,-500.0,0.00014356,2]
[331799248,1720765938059,-1195.55,0.00014356,2]
[331799249,1720765938069,-1164.92,0.00014356,2]
[331799250,1720765938079,-592.67,0.00014356,2]
[331799251,1720765938089,-832.05,0.00014356,2]
[331799252,1720765938098,-1157.39,0.00014356,2]
[331799253,1720765938108,-965.25,0.00014356,2]
[331799254,1720765938118,-1057.96,0.00014356,2]
[331799255,1720765938127,-500.0,0.00014356,2]
[331799256,1720765938137,-663.73,0.00014356,2]
[331799257,1720765938147,-500.0,0.00014356,2]
[331799258,1720765938157,-996.83,0.00014356,2]
[331799259,1720765938167,-778.42,0.00014356,2]
[331799260,1720765938176,-500.94,0.00014356,2]
[331799261,1720765938186,-500.0,0.00014356,2]
[331799262,1720765938196,-1011.24,0.00014356,2]
[331799263,1720765938206,-724.27,0.00014356,2]
[331799264,1720765938216,-500.0,0.00014356,2]
[331799265,1720765938228,-500.0,0.00014356,2]
[331799266,1720765938238,-948.7,0.00014356,2]
[331799267,1720765938247,-1338.17,0.00014356,2]
[331799268,1720765938257,-894.67,0.00014356,2]
[331799269,1720765938266,-500.0,0.00014356,2]
[331799270,1720765938275,-691.16,0.00014356,2]
[331799271,1720765938285,-500.0,0.00014356,2]
[331799272,1720765938294,-706.91,0.00014356,2]
[331799273,1720765938304,-500.0,0.00014356,2]
[331799274,1720765938313,-1648.59,0.00014356,2]
[331799275,1720765938322,-579.34,0.00014356,2]
[331799276,1720765938332,-534.75,0.00014356,2]
[331799277,1720765938341,-6673.84,0.00014356,2]
[331799278,1720765938350,-500.0,0.00014356,2]
[331799279,1720765938360,-791.66,0.00014356,2]
[331799280,1720765938369,-868.6,0.00014356,2]
[331799281,1720765938379,-503.87,0.00014356,2]
[331799282,1720765938388,-500.0,0.00014356,2]
[331799283,1720765938398,-1463.05,0.00014356,2]
[331799284,1720765938407,-500.0,0.00014356,2]
[331799285,1720765938417,-1711.11,0.00014356,2]
[331799286,1720765938426,-461.14381987,0.00014356,2]
[331799287,1720765938435,-940.12,0.00014356,2]
[331799288,1720765938445,-500.0,0.00014356,2]
[331799289,1720765938454,-500.0,0.00014356,2]
[331799290,1720765938464,-1103.87,0.00014356,2]
[331799291,1720765938475,-838.82,0.00014356,2]
[331799292,1720765938484,-371.30104897,0.00014356,2]
[331799293,1720765938493,-906.68,0.00014356,2]
[331799294,1720765938503,-774.99,0.00014356,2]
[331799295,1720765938515,-500.0,0.00014356,2]
[331799296,1720765938524,-1003.46,0.00014356,2]
[331799297,1720765938534,-776.49,0.00014356,2]
[331799298,1720765938544,-715.19,0.00014356,2]
[331799299,1720765938554,-2671.99,0.00014356,2]
[331799300,1720765938564,-500.0,0.00014356,2]
[331799301,1720765938573,-811.17,0.00014356,2]
[331799302,1720765938583,-1169.16,0.00014356,2]
[331799303,1720765938594,-804.64,0.00014356,2]
[331799304,1720765938604,-516.06,0.00014356,2]
[331799305,1720765938614,-500.0,0.00014356,2]
[331799306,1720765938623,-1567.42,0.00014356,2]
[331799307,1720765938632,-1123.97,0.00014356,2]
[331799308,1720765938642,-1159.17,0.00014356,2]
[331799309,1720765938652,-7796.51,0.00014356,2]
[331799310,1720765938662,-682.47,0.00014356,2]
[331799311,1720765938672,-884.1,0.00014356,2]
[331799312,1720765938682,-3427.86,0.00014356,2]
[331799313,1720765938691,-761.42,0.00014356,2]
[331799314,1720765938700,-500.0,0.00014356,2]
[331799315,1720765938709,-500.0,0.00014356,2]
[331799316,1720765938720,-2349.61,0.00014356,2]
[331799317,1720765938730,-2824.19,0.00014356,2]
[331799318,1720765938739,-544.06,0.00014356,2]
[331799319,1720765938748,-1413.14,0.00014356,2]
[331799320,1720765938758,-500.0,0.00014356,2]
[331799321,1720765938767,-746.16,0.00014356,2]
[331799322,1720765938776,-568.05,0.00014356,2]
[331799323,1720765938785,-1225.06,0.00014356,2]
[331799324,1720765938794,-1040.64,0.00014356,2]
[331799325,1720765938804,-500.0,0.00014356,2]
[331799326,1720765938813,-502.01,0.00014356,2]
[331799327,1720765938823,-945.48,0.00014356,2]
[331799328,1720765938832,-1864.03,0.00014356,2]
[331799329,1720765938842,-500.0,0.00014356,2]
[331799330,1720765938852,-782.62,0.00014356,2]
[331799331,1720765938862,-3139.48,0.00014356,2]
[331799332,1720765938871,-967.92,0.00014356,2]
[331799333,1720765938881,-817.59,0.00014356,2]
[331799334,1720765938891,-760.77,0.00014356,2]
[331799335,1720765938900,-672.02,0.00014356,2]
[331799336,1720765938909,-500.0,0.00014356,2]
[331799337,1720765938919,-500.0,0.00014356,2]
[331799338,1720765938928,-1369.87,0.00014356,2]
[331799339,1720765938938,-503.52,0.00014356,2]
[331799340,1720765938947,-927.94,0.00014356,2]
[331799341,1720765938956,-510.11,0.00014356,2]
[331799342,1720765938967,-883.29,0.00014356,2]
[331799343,1720765938977,-500.0,0.00014356,2]
[331799344,1720765938987,-703.12,0.00014356,2]
[331799345,1720765938997,-913.43,0.00014356,2]
[331799346,1720765939006,-500.0,0.00014356,2]
[331799347,1720765939016,-1249.82,0.00014356,2]
[331799348,1720765939025,-698.85,0.00014356,2]
[331799349,1720765939034,-500.0,0.00014356,2]
[331799350,1720765939044,-513.61,0.00014356,2]
[331799351,1720765939053,-489.86306976,0.00014356,2]
[331799352,1720765939062,-500.0,0.00014356,2]
[331799353,1720765939072,-3390.01,0.00014356,2]
[331799354,1720765939082,-522.91,0.00014356,2]
[331799355,1720765939092,-977.7,0.00014356,2]
[331799356,1720765939101,-641.99,0.00014356,2]
[331799357,1720765939112,-760.44,0.00014356,2]
[331799358,1720765939121,-853.13,0.00014356,2]
[331799359,1720765939130,-534.54,0.00014356,2]
[331799360,1720765939140,-1000.0,0.00014356,2]
[331799361,1720765939149,-181.4307852,0.00014365,2]
[331799362,1720765939159,-158.92801915,0.00014384,2]
[331799363,1720765939168,-500.0,0.0001441,2]
[331799364,1720765939178,-500.0,0.0001441,2]
[331799365,1720765939187,-500.0,0.0001441,2]
[331799366,1720765939196,-500.0,0.0001441,2]
[331799367,1720765939205,-500.0,0.0001441,2]
[331799368,1720765939214,-500.0,0.0001441,2]
[331799369,1720765939224,-500.0,0.0001441,2]
[331799370,1720765939233,-600.13,0.0001441,2]
[331799371,1720765939243,-500.0,0.0001441,2]
[331799372,1720765939253,-533.46,0.0001441,2]
[331799373,1720765939262,-500.0,0.0001441,2]
[331799374,1720765939272,-547.29,0.0001441,2]
[331799375,1720765939282,-527.94,0.0001441,2]
[331799376,1720765939291,-500.0,0.0001441,2]
[331799377,1720765939300,-500.0,0.0001441,2]
[331799378,1720765939310,-829.62,0.0001441,2]
[331799379,1720765939319,-678.42,0.0001441,2]
[331799380,1720765939329,-500.0,0.0001441,2]
[331799381,1720765939338,-500.0,0.0001441,2]
[331799382,1720765939348,-500.0,0.0001441,2]
[331799383,1720765939357,-1078.13,0.0001441,2]
[331799384,1720765939366,-599.97,0.0001441,2]
[331799385,1720765939376,-572.91,0.0001441,2]
[331799386,1720765939385,-500.0,0.0001441,2]
[331799387,1720765939394,-350.52664709,0.0001441,2]
[331799388,1720765939403,-541.87,0.0001441,2]
[331799389,1720765939413,-561.01,0.0001441,2]
[331799390,1720765939422,-500.0,0.0001441,2]
[331799391,1720765939432,-526.37,0.0001441,2]
[331799392,1720765939441,-608.590417,0.0001441,2]
[331799393,1720765939450,-658.35,0.0001441,2]
[331799394,1720765939460,-597.81,0.0001441,2]
[331799395,1720765939469,-665.34,0.0001441,2]
[331799396,1720765939479,-879.54,0.0001441,2]
[331799397,1720765939489,-418.57721903,0.0001441,2]
[331799398,1720765939498,-1042.83,0.0001441,2]
[331799399,1720765939510,-500.0,0.0001441,2]
[331799400,1720765939522,-500.0,0.0001441,2]
[331799401,1720765939532,-801.96,0.0001441,2]
[331799402,1720765939541,-676.83,0.0001441,2]
[331799403,1720765939551,-576.46,0.0001441,2]
[331799404,1720765939560,-679.71,0.0001441,2]
[331799405,1720765939570,-699.82,0.0001441,2]
[331799406,1720765939579,-902.64,0.0001441,2]
[331799407,1720765939590,-500.0,0.0001441,2]
[331799408,1720765939599,-969.66,0.0001441,2]
[331799409,1720765939612,-1386.9,0.0001441,2]
[331799410,1720765939621,-500.0,0.0001441,2]
[331799411,1720765939631,-500.0,0.0001441,2]
[331799412,1720765939641,-832.86,0.0001441,2]
[331799413,1720765939651,-1142.56,0.0001441,2]
[331799414,1720765939661,-584.03,0.0001441,2]
[331799415,1720765939671,-678.02,0.0001441,2]
[331799416,1720765939682,-965.58,0.0001441,2]
[331799417,1720765939692,-980.86,0.0001441,2]
[331799418,1720765939702,-500.0,0.0001441,2]
[331799419,1720765939712,-500.0,0.0001441,2]
[331799420,1720765939722,-625.22,0.0001441,2]
[331799421,1720765939735,-500.0,0.0001441,2]
[331799422,1720765939745,-1043.71,0.0001441,2]
[331799423,1720765939754,-500.0,0.0001441,2]
[331799424,1720765939764,-1095.96,0.0001441,2]
[331799425,1720765939774,-663.07,0.0001441,2]
[331799426,1720765939784,-500.0,0.0001441,2]
[331799427,1720765939794,-1311.76,0.0001441,2]
[331799428,1720765939804,-500.0,0.0001441,2]
[331799429,1720765939814,-1064.74,0.0001441,2]
[331799430,1720765939824,-500.0,0.0001441,2]
[331799431,1720765939834,-500.0,0.0001441,2]
[331799432,1720765939844,-1453.03,0.0001441,2]
[331799433,1720765939854,-506.91,0.0001441,2]
[331799434,1720765939864,-625.46,0.0001441,2]
[331799435,1720765939874,-651.67,0.0001441,2]
[331799436,1720765939883,-1301.15,0.0001441,2]
[331799437,1720765939894,-618.62,0.0001441,2]
[331799438,1720765939904,-500.0,0.0001441,2]
[331799439,1720765939914,-1182.83,0.0001441,2]
[331799440,1720765939924,-871.11,0.0001441,2]
[331799441,1720765939934,-500.0,0.0001441,2]
[331799442,1720765939944,-886.56,0.0001441,2]
[331799443,1720765939953,-500.0,0.0001441,2]
[331799444,1720765939963,-1085.4,0.0001441,2]
[331799445,1720765939973,-896.6,0.0001441,2]
[331799446,1720765939982,-830.96,0.0001441,2]
[331799447,1720765939992,-674.06,0.0001441,2]
[331799448,1720765940002,-1895.01,0.0001441,2]
[331799449,1720765940012,-1172.9,0.0001441,2]
[331799450,1720765940022,-1660.92,0.0001441,2]
[331799451,1720765940032,-644.5,0.0001441,2]
[331799452,1720765940042,-1467.31,0.0001441,2]
[331799453,1720765940052,-981.49,0.0001441,2]
[331799454,1720765940063,-500.0,0.0001441,2]
[331799455,1720765940074,-1112.45,0.0001441,2]
[331799456,1720765940083,-721.53,0.0001441,2]
[331799457,1720765940094,-773.09,0.0001441,2]
[331799458,1720765940103,-750.22,0.0001441,2]
[331799459,1720765940113,-617.12,0.0001441,2]
[331799460,1720765940123,-1485.55,0.0001441,2]
[331799461,1720765940133,-645.73,0.0001441,2]
[331799462,1720765940143,-609.33,0.0001441,2]
[331799463,1720765940153,-1043.11,0.0001441,2]
[331799464,1720765940163,-577.94,0.0001441,2]
[331799465,1720765940174,-1001.09,0.0001441,2]
[331799466,1720765940184,-572.94,0.0001441,2]
[331799467,1720765940194,-826.26,0.0001441,2]
[331799468,1720765940204,-500.0,0.0001441,2]
[331799469,1720765940214,-863.68,0.0001441,2]
[331799470,1720765940226,-978.71,0.0001441,2]
[331799471,1720765940236,-927.14,0.0001441,2]
[331799472,1720765940246,-1033.49,0.0001441,2]
[331799473,1720765940258,-500.0,0.0001441,2]
[331799474,1720765940268,-500.0,0.0001441,2]
[331799475,1720765940278,-584.99,0.0001441,2]
[331799476,1720765940288,-1551.06,0.0001441,2]
[331799477,1720765940298,-924.22,0.0001441,2]
[331799478,1720765940307,-936.64,0.0001441,2]
[331799479,1720765940317,-500.0,0.0001441,2]
[331799480,1720765940327,-583.16,0.0001441,2]
[331799481,1720765940336,-1266.54,0.0001441,2]
[331799482,1720765940346,-1145.72,0.0001441,2]
[331799483,1720765940355,-628.89,0.0001441,2]
[331799484,1720765940365,-1072.75,0.0001441,2]
[331799485,1720765940374,-882.64,0.0001441,2]
[331799486,1720765940383,-908.15,0.0001441,2]
[331799487,1720765940393,-617.45,0.0001441,2]
[331799488,1720765940402,-500.0,0.0001441,2]
[331799489,1720765940412,-597.8,0.0001441,2]
[331799490,1720765940422,-1413.12,0.0001441,2]
[331799491,1720765940432,-684.65,0.0001441,2]
[331799492,1720765940443,-1269.4,0.0001441,2]
[331799493,1720765940452,-820.34,0.0001441,2]
[331799494,1720765940462,-1009.57,0.0001441,2]
[331799495,1720765940474,-570.33,0.0001441,2]
[331799496,1720765940483,-751.75,0.0001441,2]
[331799497,1720765940494,-500.0,0.0001441,2]
[331799498,1720765940504,-1287.67,0.0001441,2]
[331799499,1720765940517,-922.77,0.0001441,2]
[331799500,1720765940527,-500.0,0.0001441,2]
[331799501,1720765940537,-1345.39,0.0001441,2]
[331799502,1720765940547,-649.45,0.0001441,2]
[331799503,1720765940559,-536.18,0.0001441,2]
[331799504,1720765940569,-500.0,0.0001441,2]
[331799505,1720765940578,-895.96,0.0001441,2]
[331799506,1720765940589,-566.55,0.0001441,2]
[331799507,1720765940599,-729.38,0.0001441,2]
[331799508,1720765940609,-1632.41,0.0001441,2]
[331799509,1720765940625,-500.0,0.0001441,2]
[331799510,1720765940639,-500.0,0.0001441,2]
[331799511,1720765940648,-1661.47,0.0001441,2]
[331799512,1720765940658,-1622.68,0.0001441,2]
[331799513,1720765940668,-1461.03,0.0001441,2]
[331799514,1720765940677,-600.18,0.0001441,2]
[331799515,1720765940687,-932.1,0.0001441,2]
[331799516,1720765940697,-500.0,0.0001441,2]
[331799517,1720765940708,-652.76,0.0001441,2]
[331799518,1720765940717,-590.79,0.0001441,2]
[331799519,1720765940729,-649.76,0.0001441,2]
[331799520,1720765940738,-562.94,0.0001441,2]
[331799521,1720765940748,-500.0,0.0001441,2]
[331799522,1720765940759,-500.0,0.0001441,2]
[331799523,1720765940769,-511.55,0.0001441,2]
[331799524,1720765940779,-682.84,0.0001441,2]
[331799525,1720765940788,-500.0,0.0001441,2]
[331799526,1720765940798,-913.11,0.0001441,2]
[331799527,1720765940808,-500.0,0.0001441,2]
[331799528,1720765940818,-557.92,0.0001441,2]
[331799529,1720765940828,-500.0,0.0001441,2]
[331799530,1720765940838,-665.1,0.0001441,2]
[331799531,1720765940849,-500.0,0.0001441,2]
[331799532,1720765940858,-647.57,0.0001441,2]
[331799533,1720765940868,-655.14,0.0001441,2]
[331799534,1720765940878,-1070.59,0.0001441,2]
[331799535,1720765940887,-500.0,0.0001441,2]
[331799536,1720765940898,-549.77,0.0001441,2]
[331799537,1720765940908,-955.34,0.0001441,2]
[331799538,1720765940918,-500.0,0.0001441,2]
[331799539,1720765940928,-247.91171576,0.0001441,2]
[331799540,1720765940938,-572.55,0.0001441,2]
[331799541,1720765940950,-1087.88,0.0001441,2]
[331799542,1720765940960,-924.38,0.0001441,2]
[331799543,1720765940970,-895.76,0.0001441,2]
[331799544,1720765940980,-877.72,0.0001441,2]
[331799545,1720765940990,-811.35,0.0001441,2]
[331799546,1720765941000,-701.46,0.0001441,2]
[331799547,1720765941010,-943.64,0.0001441,2]
[331799548,1720765941020,-535.3,0.0001441,2]
[331799549,1720765941029,-951.0,0.0001441,2]
[331799550,1720765941039,-533.99,0.0001441,2]
[331799551,1720765941049,-500.0,0.0001441,2]
[331799552,1720765941060,-691.79,0.0001441,2]
[331799553,1720765941070,-621.87149759,0.0001441,2]
[331799554,1720765941080,-749.0,0.0001441,2]
[331799555,1720765941089,-646.61,0.0001441,2]
[331799556,1720765941099,-1153.39,0.0001441,2]
[331799557,1720765941109,-828.98,0.0001441,2]
[331799558,1720765941120,-500.0,0.0001441,2]
[331799559,1720765941130,-797.92,0.0001441,2]
[331799560,1720765941139,-678.2,0.0001441,2]
[331799561,1720765941150,-742.09,0.0001441,2]
[331799562,1720765941160,-925.55,0.0001441,2]
[331799563,1720765941170,-718.26,0.0001441,2]
[331799564,1720765941179,-660.22,0.0001441,2]
[331799565,1720765941189,-685.66,0.0001441,2]
[331799566,1720765941199,-616.92,0.0001441,2]
[331799567,1720765941208,-626.69,0.0001441,2]
[331799568,1720765941218,-578.66,0.0001441,2]
[331799569,1720765941230,-1182.27,0.0001441,2]
[331799570,1720765941239,-751.88,0.0001441,2]
[331799571,1720765941249,-788.87,0.0001441,2]
[331799572,1720765941264,-589.96,0.0001441,2]
[331799573,1720765941274,-1518.85,0.0001441,2]
[331799574,1720765941283,-500.0,0.0001441,2]
[331799575,1720765941294,-863.12,0.0001441,2]
[331799576,1720765941304,-500.0,0.0001441,2]
[331799577,1720765941314,-765.3,0.0001441,2]
[331799578,1720765941324,-1173.86,0.0001441,2]
[331799579,1720765941334,-500.0,0.0001441,2]
[331799580,1720765941344,-714.93,0.0001441,2]
[331799581,1720765941354,-500.0,0.0001441,2]
[331799582,1720765941364,-889.91,0.0001441,2]
[331799583,1720765941374,-500.0,0.0001441,2]
[331799584,1720765941385,-797.27,0.0001441,2]
[331799585,1720765941395,-500.0,0.0001441,2]
[331799586,1720765941404,-508.63,0.0001441,2]
[331799587,1720765941414,-500.0,0.0001441,2]
[331799588,1720765941424,-1002.89,0.0001441,2]
[331799589,1720765941434,-512.8,0.0001441,2]
[331799590,1720765941444,-905.0,0.0001441,2]
[331799591,1720765941454,-500.0,0.0001441,2]
[331799592,1720765941464,-500.0,0.0001441,2]
[331799593,1720765941474,-500.0,0.0001441,2]
[331799594,1720765941484,-504.61,0.0001441,2]
[331799595,1720765941494,-500.0,0.0001441,2]
[331799596,1720765941504,-500.0,0.0001441,2]
[331799597,1720765941515,-998.09,0.0001441,2]
[331799598,1720765941526,-1181.8,0.0001441,2]
[331799599,1720765941536,-1692.88,0.0001441,2]
[331799600,1720765941546,-500.0,0.0001441,2]
[331799601,1720765941557,-500.0,0.0001441,2]
[331799602,1720765941567,-806.67,0.0001441,2]
[331799603,1720765941579,-1115.55,0.0001441,2]
[331799604,1720765941590,-1111.86,0.0001441,2]
[331799605,1720765941600,-500.0,0.0001441,2]
[331799606,1720765941610,-1152.37,0.0001441,2]
[331799607,1720765941619,-500.0,0.0001441,2]
[331799608,1720765941629,-500.0,0.0001441,2]
[331799609,1720765941954,-1099.21,0.0001441,2]
[331799610,1720765941966,-500.0,0.0001441,2]
[331799611,1720765941977,-595.11,0.0001441,2]
[331799612,1720765941986,-958.58,0.0001441,2]
[331799613,1720765941996,-1435.54,0.0001441,2]
[331799614,1720765942005,-500.0,0.0001441,2]
[331799615,1720765942015,-933.39,0.0001441,2]
[331799616,1720765942024,-500.0,0.0001441,2]
[331799617,1720765942034,-885.22,0.0001441,2]
[331799618,1720765942043,-525.55,0.0001441,2]
[331799619,1720765942053,-578.47,0.0001441,2]
[331799620,1720765942062,-585.1,0.0001441,2]
[331799621,1720765942072,-768.43,0.0001441,2]
[331799622,1720765942081,-500.0,0.0001441,2]
[331799623,1720765942091,-1131.03,0.0001441,2]
[331799624,1720765942100,-500.66,0.0001441,2]
[331799625,1720765942110,-1387.16,0.0001441,2]
[331799626,1720765942120,-769.71,0.0001441,2]
[331799627,1720765942130,-929.61,0.0001441,2]
[331799628,1720765942140,-500.0,0.0001441,2]
[331799629,1720765942151,-1195.55,0.0001441,2]
[331799630,1720765942161,-1164.92,0.0001441,2]
[331799631,1720765942171,-592.67,0.0001441,2]
[331799632,1720765942181,-832.05,0.0001441,2]
[331799633,1720765942191,-1157.39,0.0001441,2]